bitfinex/quotes_BTCUSD_20240823
["timestamp","ask_amount","ask_price","bid_price","bid_amount"]
[1724410863159,1.8963702,61177.0,61176.0,0.146923]
[1724410863656,1.87103111,61177.0,61176.0,0.146923]
[1724410863866,1.01293075,61177.0,61176.0,0.146923]
[1724410864069,0.86584857,61177.0,61176.0,0.146923]
[1724410864725,0.98840242,61177.0,61176.0,0.146923]
[1724410864932,0.97740242,61177.0,61176.0,0.146923]
[1724410865147,1.11154128,61177.0,61176.0,0.146923]
[1724410865356,1.11854128,61177.0,61176.0,0.146923]
[1724410866500,1.1185013,61177.0,61176.0,0.146923]
[1724410866910,1.1255013,61177.0,61176.0,0.146923]
[1724410868422,1.00298743,61177.0,61176.0,0.146923]
[1724410869932,0.53092857,61177.0,61176.0,0.146923]
[1724410870462,0.95582185,61177.0,61176.0,0.146923]
[1724410870671,0.62890185,61177.0,61176.0,0.146923]
[1724410870786,0.95582185,61177.0,61176.0,0.146923]
[1724410870987,1.28274185,61177.0,61176.0,0.146923]
[1724410871189,1.43128728,61177.0,61176.0,0.146923]
[1724410873083,1.10436728,61177.0,61176.0,0.146923]
[1724410873725,1.43128728,61177.0,61176.0,0.146923]
[1724410874242,1.333314,61177.0,61176.0,0.146923]
[1724410874487,0.13852611,61177.0,61176.0,0.146923]
[1724410874692,0.2774896,61177.0,61176.0,0.146923]
[1724410874948,0.2774896,61177.0,61176.0,0.20589794]
[1724410875477,0.19000857,61177.0,61176.0,0.20589794]
[1724410875674,0.51692857,61177.0,61176.0,0.20589794]
[1724410875908,0.52392857,61177.0,61176.0,0.20589794]
[1724410876112,0.68669411,61177.0,61176.0,0.20589794]
[1724410876313,0.63070977,61177.0,61176.0,0.20589794]
[1724410876848,0.67969522,61177.0,61176.0,0.20589794]
[1724410877280,0.63070977,61177.0,61176.0,0.20589794]
[1724410877462,0.7041908,61177.0,61176.0,0.20589794]
[1724410877599,0.63070977,61177.0,61176.0,0.20589794]
[1724410878343,0.7041908,61177.0,61176.0,0.20589794]
[1724410878686,0.70420187,61177.0,61176.0,0.20589794]
[1724410880095,0.70421085,61177.0,61176.0,0.20589794]
[1724410880298,0.02654857,61177.0,61176.0,1.26741152]
[1724410881567,0.02754857,61177.0,61176.0,1.27241152]
[1724410881765,0.02754857,61177.0,61176.0,1.59933652]
[1724410882007,0.02754857,61177.0,61176.0,1.26841152]
[1724410882219,0.02754857,61177.0,61176.0,1.27341152]
[1724410882220,0.02854857,61177.0,61176.0,1.27341152]
[1724410882419,0.02754857,61177.0,61176.0,1.27241152]
[1724410882771,0.02854857,61177.0,61176.0,1.27341152]
[1724410882966,0.02754857,61177.0,61176.0,1.26841152]
[1724410883355,0.02754857,61177.0,61176.0,1.26741152]
[1724410883356,0.02654857,61177.0,61176.0,1.26741152]
[1724410884410,0.02754857,61177.0,61176.0,1.19221292]
[1724410884604,0.02854857,61177.0,61176.0,1.19221292]
[1724410884804,0.02754857,61177.0,61176.0,1.18721292]
[1724410885004,0.02854857,61177.0,61176.0,1.19221292]
[1724410885839,0.02854857,61177.0,61176.0,1.17746918]
[1724410893886,0.02654857,61177.0,61176.0,1.17246918]
[1724410894095,0.02754857,61177.0,61176.0,1.17746918]
[1724410894300,0.02854857,61177.0,61176.0,1.17746918]
[1724410895094,0.02854857,61177.0,61176.0,0.85054418]
[1724410901763,0.02854857,61177.0,61176.0,0.1961542]
[1724410903249,0.02654857,61177.0,61176.0,0.1911542]
[1724410903500,0.02754857,61177.0,61176.0,0.1961542]
[1724410903702,0.02854857,61177.0,61176.0,0.1961542]
[1724410903917,0.02754857,61177.0,61176.0,0.1911542]
[1724410904158,0.02854857,61177.0,61176.0,0.1961542]
[1724410904366,0.02754857,61177.0,61176.0,0.1961542]
[1724410904779,0.02854857,61177.0,61176.0,0.1961542]
[1724410905518,0.02854857,61177.0,61176.0,0.21089793]
[1724410908557,0.19200857,61177.0,61176.0,0.21089793]
[1724410908684,0.02854857,61177.0,61176.0,0.21089793]
[1724410912069,0.02854857,61177.0,61176.0,0.18141047]
[1724410914253,0.02854857,61177.0,61176.0,0.34487247]
[1724410915676,0.02854857,61177.0,61176.0,0.42514826]
[1724410916854,0.02854857,61177.0,61176.0,0.75207326]
[1724410927088,0.02854857,61177.0,61176.0,0.67179747]
[1724410937760,0.02854857,61177.0,61176.0,0.34487247]
[1724410945876,0.07763646,61177.0,61176.0,0.34487247]
[1724410947394,0.07766089,61177.0,61176.0,0.34487247]
[1724410950105,0.07766089,61177.0,61176.0,0.18141047]
[1724410952219,0.24112089,61177.0,61176.0,0.03531047]
[1724410953240,0.07766089,61177.0,61176.0,0.03531047]
[1724410953450,0.19200857,61177.0,61176.0,0.03531047]
[1724410956130,0.02854857,61177.0,61176.0,0.03531047]
[1724410957217,0.19200857,61177.0,61176.0,0.03531047]
[1724410957351,0.24111661,61177.0,61176.0,0.03531047]
[1724410957529,0.07765661,61177.0,61176.0,0.03531047]
[1724410960064,0.24111661,61177.0,61176.0,0.03531047]
[1724410961904,0.24111604,61177.0,61176.0,0.02421604]
[1724410962829,0.07765604,61177.0,61176.0,0.02421604]
[1724410966261,0.24111604,61177.0,61176.0,0.02421604]
[1724410966494,0.07765604,61177.0,61176.0,0.02421604]
[1724410967492,0.07765604,61177.0,61176.0,0.10041604]
[1724410969176,0.07765444,61177.0,61176.0,0.10041604]
[1724410971321,0.02854857,61177.0,61176.0,0.10041604]
[1724410972601,0.02854857,61177.0,61176.0,0.26874255]
[1724410979550,0.02854857,61177.0,61176.0,0.59566755]
[1724410983772,0.04909764,61180.0,61177.0,0.163459]
[1724410983977,0.21254664,61181.0,61177.0,0.163459]
[1724410984182,0.21254664,61181.0,61178.0,0.02325225]
[1724410984380,0.02564016,61180.0,61178.0,0.02325225]
[1724410984582,0.18909216,61180.0,61178.0,0.02325225]
[1724410984947,0.19009216,61180.0,61178.0,0.02325225]
[1724410985562,0.18909216,61180.0,61178.0,0.02325225]
[1724410985761,0.2381898,61180.0,61178.0,0.02725225]
[1724410986023,0.2391898,61180.0,61178.0,0.02725225]
[1724410986218,0.163454,61179.0,61178.0,0.02325225]
[1724410986645,0.0757378,61180.0,61176.0,0.000823]
[1724410986845,0.163455,61179.0,61178.0,0.02325225]
[1724410987057,0.163455,61179.0,61177.0,0.0232549]
[1724410987263,0.82825739,61179.0,61178.0,0.02325225]
[1724410987472,1.62779141,61179.0,61178.0,0.02325225]
[1724410987610,1.62779141,61179.0,61176.0,0.000823]
[1724410987611,0.9613,61177.0,61176.0,0.000823]
[1724410987856,1.44139425,61177.0,61176.0,0.000823]
[1724410988055,2.03231723,61177.0,61176.0,0.000823]
[1724410988411,2.05531723,61177.0,61176.0,0.000823]
[1724410988965,2.05631723,61177.0,61176.0,0.007823]
[1724410989285,2.05531723,61177.0,61176.0,0.000823]
[1724410989652,2.20535372,61177.0,61176.0,0.007823]
[1724410989857,2.53327372,61177.0,61176.0,0.007823]
[1724410990061,2.05931723,61177.0,61176.0,0.007823]
[1724410990852,2.05731723,61177.0,61176.0,0.007823]
[1724410990986,2.06031723,61177.0,61176.0,0.000823]
[1724410991573,2.05931723,61177.0,61176.0,0.000823]
[1724410991691,2.05931723,61177.0,61176.0,0.001823]
[1724410991692,2.06131723,61177.0,61176.0,0.001823]
[1724410991891,2.05631723,61177.0,61176.0,0.000823]
[1724410992099,2.05631723,61177.0,61176.0,0.001823]
[1724410992100,2.06631723,61177.0,61176.0,0.001823]
[1724410992298,2.07131723,61177.0,61176.0,0.002823]
[1724410992558,2.05631723,61177.0,61176.0,0.000823]
[1724410993014,2.06631723,61177.0,61176.0,0.001823]
[1724410994047,2.07631723,61177.0,61176.0,0.002823]
[1724410994812,2.10196095,61177.0,61176.0,0.002823]
[1724410995512,2.10286625,61177.0,61176.0,0.002823]
[1724410995926,2.07722253,61177.0,61176.0,0.002823]
[1724410996545,2.22387746,61177.0,61176.0,0.002823]
[1724410997592,2.07722253,61177.0,61176.0,0.002823]
[1724410998427,2.40414253,61177.0,61176.0,0.002823]
[1724411002567,2.55067423,61177.0,61176.0,0.002823]
[1724411002696,2.40414253,61177.0,61176.0,0.002823]
[1724411003096,2.42978769,61177.0,61176.0,0.002823]
[1724411003524,2.57727205,61177.0,61176.0,0.002823]
[1724411003700,2.57827205,61177.0,61176.0,0.002823]
[1724411003899,2.57627205,61177.0,61176.0,0.002823]
[1724411004111,1.612306,61170.0,61161.0,0.00823]
[1724411004319,2.14091537,61170.0,61161.0,0.00823]
[1724411004696,2.16656191,61170.0,61161.0,0.00823]
[1724411005297,2.26621722,61170.0,61161.0,0.00823]
[1724411005763,2.17056191,61170.0,61161.0,0.00823]
[1724411006513,2.24377564,61170.0,61161.0,0.00823]
[1724411007802,2.24377564,61170.0,61169.0,0.01291593]
[1724411008029,2.16349985,61170.0,61169.0,0.01291593]
[1724411008238,2.24377011,61170.0,61169.0,0.01291593]
[1724411008790,2.21936485,61170.0,61169.0,0.01291593]
[1724411009145,2.17056191,61170.0,61169.0,0.01291593]
[1724411009439,2.21936289,61170.0,61169.0,0.01291593]
[1724411010802,2.21929751,61170.0,61169.0,0.01291593]
[1724411013136,2.24494518,61170.0,61169.0,0.01291593]
[1724411014218,2.2693524,61170.0,61169.0,0.01291593]
[1724411014415,2.29375513,61170.0,61169.0,0.01291593]
[1724411014620,2.62171213,61170.0,61169.0,0.01291593]
[1724411014951,2.5241012,61170.0,61169.0,0.01291593]
[1724411015366,2.64609666,61170.0,61169.0,0.01291593]
[1724411015982,2.64409666,61170.0,61169.0,0.01291593]
[1724411016436,2.5201012,61170.0,61169.0,0.01291593]
[1724411016627,2.5341012,61170.0,61169.0,0.01391593]
[1724411017178,2.5201012,61170.0,61169.0,0.01291593]
[1724411017378,2.5341012,61170.0,61169.0,0.01391593]
[1724411017572,2.5201012,61170.0,61169.0,0.01291593]
[1724411017774,2.5201012,61170.0,61163.0,0.01198739]
[1724411017775,1.799351,61167.0,61163.0,0.01198739]
[1724411017998,0.490579,61152.0,61147.0,0.00823]
[1724411018203,1.86251677,61152.0,61147.0,0.00823]
[1724411018408,1.88551677,61152.0,61147.0,0.00823]
[1724411018606,1.91116951,61152.0,61147.0,0.00823]
[1724411018811,2.0739158,61152.0,61147.0,0.00823]
[1724411019294,2.0769158,61152.0,61147.0,0.00823]
[1724411020315,2.0739158,61152.0,61147.0,0.00823]
[1724411020544,2.0799158,61152.0,61151.0,0.00943]
[1724411020719,2.0839158,61152.0,61151.0,0.00943]
[1724411020919,2.0799158,61152.0,61151.0,0.00943]
[1724411021121,2.0739158,61152.0,61151.0,0.00843]
[1724411021344,2.0939158,61152.0,61151.0,0.01043]
[1724411022126,2.0839158,61152.0,61151.0,0.00943]
[1724411022321,2.0969158,61152.0,61151.0,0.01043]
[1724411022526,2.0869158,61152.0,61151.0,0.00943]
[1724411022907,2.0969158,61152.0,61151.0,0.00943]
[1724411023207,2.1314967,61152.0,61151.0,0.00943]
[1724411023407,2.1214967,61152.0,61151.0,0.00943]
[1724411023764,2.1204967,61152.0,61151.0,0.00843]
[1724411023933,2.1334967,61152.0,61151.0,0.00943]
[1724411028163,2.18226382,61152.0,61151.0,0.00943]
[1724411028323,2.1334967,61152.0,61151.0,0.00943]
[1724411028529,2.1822824,61152.0,61151.0,0.00943]
[1724411029556,2.20664738,61152.0,61151.0,0.00943]
[1724411029966,2.1334967,61152.0,61151.0,0.00943]
[1724411030362,2.20664738,61152.0,61151.0,0.00943]
[1724411031378,2.11617425,61152.0,61151.0,0.00943]
[1724411031589,2.08453094,61152.0,61151.0,0.07583]
[1724411031979,1.94539587,61152.0,61151.0,0.07583]
[1724411032176,1.78264958,61152.0,61151.0,0.15313]
[1724411032456,1.45559658,61152.0,61151.0,0.15313]
[1724411033437,1.38234072,61152.0,61151.0,0.15313]
[1724411035604,1.48001521,61152.0,61151.0,0.15313]
[1724411035727,1.64399399,61152.0,61151.0,0.15313]
[1724411039721,1.61967315,61152.0,61151.0,0.15313]
[1724411040956,1.64412461,61152.0,61151.0,0.15313]
[1724411041474,1.5463195,61152.0,61151.0,0.15313]
[1724411041671,1.64412125,61152.0,61151.0,0.15313]
[1724411041851,1.5463195,61152.0,61151.0,0.15313]
[1724411043797,1.5213195,61152.0,61151.0,0.15213]
[1724411044012,1.5213195,61152.0,61151.0,0.15313]
[1724411044209,1.5463195,61152.0,61151.0,0.15313]
[1724411044533,1.63111976,61152.0,61151.0,0.15213]
[1724411044780,1.75100639,61152.0,61151.0,0.15313]
[1724411045679,1.73900639,61152.0,61151.0,0.15313]
[1724411045811,1.74400639,61152.0,61151.0,0.15313]
[1724411046413,1.64617619,61152.0,61151.0,0.15313]
[1724411046615,1.76846394,61152.0,61151.0,0.15313]
[1724411046818,1.76848848,61152.0,61151.0,0.15313]
[1724411047124,1.64617619,61152.0,61151.0,0.15313]
[1724411048778,1.64617619,61152.0,61151.0,0.00943]
[1724411055590,1.64617619,61152.0,61151.0,0.15093]
[1724411058544,1.79307134,61152.0,61151.0,0.15093]
[1724411058833,1.64617619,61152.0,61151.0,0.15093]
[1724411059597,1.79321808,61152.0,61151.0,0.15093]
[1724411060058,1.79322039,61152.0,61151.0,0.15093]
[1724411060477,1.79322039,61152.0,61140.0,0.0211143]
[1724411060478,0.001,61147.0,61140.0,0.0211143]
[1724411060683,0.68482469,61141.0,61140.0,0.0211143]
[1724411060895,1.44675167,61141.0,61140.0,0.0211143]
[1724411061099,1.87386367,61141.0,61140.0,0.0211143]
[1724411061501,1.89952252,61141.0,61140.0,0.0211143]
[1724411061656,2.08882763,61141.0,61140.0,0.0211143]
[1724411061858,2.08982763,61141.0,61140.0,0.0211143]
[1724411062154,2.08882763,61141.0,61140.0,0.0211143]
[1724411062348,1.41073387,61141.0,61140.0,0.1039143]
[1724411062969,1.32156395,61141.0,61140.0,0.1039143]
[1724411063186,1.17455085,61141.0,61140.0,0.1674143]
[1724411063563,1.17855085,61141.0,61140.0,0.1674143]
[1724411063932,1.31079289,61141.0,61140.0,0.1674143]
[1724411066161,1.31079289,61141.0,61140.0,0.1682373]
[1724411067593,1.42564958,61141.0,61140.0,0.1682373]
[1724411072149,1.31079289,61141.0,61140.0,0.1682373]
[1724411072300,1.42564958,61141.0,61140.0,0.1682373]
[1724411073582,1.17855085,61141.0,61140.0,0.1682373]
[1724411073789,0.03365885,61141.0,61140.0,0.1682373]
[1724411074207,0.03365885,61141.0,61140.0,0.2231656]
[1724411074735,0.02965885,61141.0,61140.0,0.2231656]
[1724411074937,0.02565885,61141.0,61140.0,0.2231656]
[1724411075186,0.03365885,61141.0,61140.0,0.87784558]
[1724411075558,0.02965885,61141.0,61140.0,0.87784558]
[1724411075766,0.02565885,61141.0,61140.0,0.87784558]
[1724411076159,0.02665885,61141.0,61140.0,0.87784558]
[1724411076847,0.02665885,61141.0,61140.0,0.55072758]
[1724411077012,0.02765885,61141.0,61140.0,0.55372758]
[1724411077674,0.02765885,61141.0,61140.0,0.39016858]
[1724411077877,0.51832685,61141.0,61140.0,0.2261656]
[1724411081951,0.47377285,61141.0,61140.0,0.2261656]
[1724411082152,0.18921083,61141.0,61140.0,0.2261656]
[1724411082549,0.84343483,61141.0,61140.0,0.2261656]
[1724411082760,0.84343483,61141.0,61140.0,0.0249373]
[1724411083308,0.91689366,61141.0,61140.0,0.0249373]
[1724411084116,0.91689366,61141.0,61140.0,0.0219373]
[1724411084317,0.91789366,61141.0,61140.0,0.0229373]
[1724411084562,0.91889366,61141.0,61140.0,0.0269373]
[1724411085044,1.24600566,61141.0,61140.0,0.0269373]
[1724411086433,1.17254683,61141.0,61140.0,0.0269373]
[1724411086750,1.29497821,61141.0,61140.0,0.0269373]
[1724411087254,1.17154683,61141.0,61140.0,0.0259373]
[1724411087463,1.29395681,61141.0,61140.0,0.0259373]
[1724411087664,1.29395681,61141.0,61140.0,0.0269373]
[1724411087870,1.29295681,61141.0,61140.0,0.0229373]
[1724411088072,1.17054683,61141.0,61140.0,0.0259373]
[1724411088675,1.26847517,61141.0,61140.0,0.0259373]
[1724411089130,1.17054683,61141.0,61140.0,0.0259373]
[1724411090300,1.17054683,61141.0,61140.0,0.0219373]
[1724411090699,1.17254683,61141.0,61140.0,0.0219373]
[1724411091527,1.6031992,61141.0,61140.0,0.0219373]
[1724411091731,1.50379492,61141.0,61140.0,0.0219373]
[1724411093493,1.35954981,61141.0,61140.0,0.0219373]
[1724411094060,1.68666181,61141.0,61140.0,0.0219373]
[1724411094488,1.82726181,61141.0,61140.0,0.0219373]
[1724411096714,2.30225895,61141.0,61140.0,0.0219373]
[1724411096917,2.28066548,61141.0,61140.0,0.0219373]
[1724411097278,2.60989004,61141.0,61140.0,0.0219373]
[1724411097477,2.41935259,61141.0,61140.0,0.0219373]
[1724411098576,2.53426805,61141.0,61140.0,0.0219373]
[1724411099221,0.1401,61132.0,61127.0,0.00803808]
[1724411099427,0.68228846,61128.0,61127.0,0.00803808]
[1724411099634,1.62365544,61128.0,61127.0,0.00803808]
[1724411099843,1.95083744,61128.0,61127.0,0.00803808]
[1724411100075,2.30368132,61128.0,61127.0,0.00803808]
[1724411100729,2.45042854,61128.0,61127.0,0.00803808]
[1724411100937,2.61440732,61128.0,61127.0,0.00803808]
[1724411101377,2.62240732,61128.0,61127.0,0.00803808]
[1724411101786,2.46769892,61128.0,61127.0,0.00803808]
[1724411102540,2.65013075,61128.0,61127.0,0.00803808]
[1724411102936,2.65913075,61128.0,61127.0,0.00803808]
[1724411103422,2.65013075,61128.0,61127.0,0.00803808]
[1724411103665,2.66013075,61128.0,61127.0,0.00803808]
[1724411105475,2.78221629,61128.0,61127.0,0.00803808]
[1724411106080,0.001,61110.0,61092.0,0.13508367]
[1724411106282,0.28738611,61106.0,61094.0,0.0755]
[1724411106490,0.28738611,61106.0,61093.0,0.00327368]
[1724411106491,0.491029,61096.0,61095.0,0.0755]
[1724411106942,0.491029,61096.0,61095.0,0.13074697]
[1724411107142,0.163676,61096.0,61095.0,0.13074697]
[1724411107353,0.163687,61092.0,61091.0,0.0002]
[1724411107566,0.491029,61096.0,61095.0,0.05524697]
[1724411107770,0.327353,61096.0,61091.0,0.0002]
[1724411107969,0.163687,61092.0,61091.0,0.0002]
[1724411108325,0.163687,61092.0,61091.0,0.0764]
[1724411108555,0.491062,61092.0,61091.0,0.0764]
[1724411109171,0.818437,61092.0,61091.0,0.1378]
[1724411109619,0.9002807,61092.0,61091.0,0.1378]
[1724411109742,0.9012807,61092.0,61091.0,0.1378]
[1724411109970,0.492062,61092.0,61091.0,0.1378]
[1724411110401,0.820437,61092.0,61091.0,0.1378]
[1724411110835,0.818437,61092.0,61091.0,0.1378]
[1724411111588,0.818437,61092.0,61091.0,0.0002]
[1724411111812,0.818437,61092.0,61091.0,0.0832]
[1724411112017,0.9002807,61092.0,61091.0,0.0832]
[1724411113347,0.9062807,61092.0,61091.0,0.0832]
[1724411113991,1.2336557,61092.0,61091.0,0.0832]
[1724411114207,0.9062807,61092.0,61091.0,0.0832]
[1724411114351,1.2336557,61092.0,61091.0,0.0832]
[1724411114567,1.2416557,61092.0,61091.0,0.084023]
[1724411114766,1.2336557,61092.0,61091.0,0.084023]
[1724411115225,1.2396557,61092.0,61091.0,0.084023]
[1724411115445,1.2336557,61092.0,61091.0,0.084023]
[1724411115655,1.2276557,61092.0,61091.0,0.084023]
[1724411115863,1.2336557,61092.0,61091.0,0.084023]
[1724411116420,1.2276557,61092.0,61091.0,0.001023]
[1724411116619,1.2336557,61092.0,61091.0,0.001023]
[1724411116820,1.2396557,61092.0,61091.0,0.001023]
[1724411117022,1.25933192,61092.0,61091.0,0.001023]
[1724411117225,1.4233349,61092.0,61091.0,0.001023]
[1724411117410,1.7797099,61092.0,61091.0,0.001023]
[1724411117790,1.8409099,61092.0,61091.0,0.001023]
[1724411118077,1.9209099,61092.0,61091.0,0.001023]
[1724411118275,1.9149099,61092.0,61091.0,0.001023]
[1724411118686,2.3442849,61092.0,61091.0,0.001023]
[1724411118859,2.3512849,61092.0,61091.0,0.001023]
[1724411119224,2.3512849,61092.0,61078.0,0.00823]
[1724411119225,1.615898,61079.0,61078.0,0.00823]
[1724411119566,2.32887689,61079.0,61078.0,0.00823]
[1724411119781,2.35187689,61079.0,61078.0,0.00823]
[1724411119973,2.37756159,61079.0,61078.0,0.00823]
[1724411120187,2.37756159,61079.0,61063.0,0.0119377]
[1724411120188,1.146337,61064.0,61063.0,0.0021577]
[1724411120804,1.146337,61064.0,61063.0,0.0796577]
[1724411121024,0.818812,61064.0,61063.0,0.0796577]
[1724411121171,0.84450064,61064.0,61063.0,0.0796577]
[1724411121389,0.85650064,61064.0,61063.0,0.0796577]
[1724411122204,1.17202564,61064.0,61063.0,0.0021577]
[1724411122542,0.84450064,61064.0,61063.0,0.0021577]
[1724411122749,0.9359507,61064.0,61063.0,0.0021577]
[1724411122929,0.2809007,61064.0,61063.0,0.0658577]
[1724411123286,0.2809007,61064.0,61063.0,0.11223389]
[1724411123490,0.2829007,61064.0,61063.0,0.11223389]
[1724411123689,0.6014257,61064.0,61063.0,0.11223389]
[1724411124153,0.9359507,61064.0,61063.0,0.11223389]
[1724411124341,0.9359507,61064.0,61063.0,0.04853389]
[1724411124545,0.9359507,61064.0,61063.0,0.0021577]
[1724411125342,1.2634757,61064.0,61063.0,0.0021577]
[1724411125516,1.2564757,61064.0,61063.0,0.0021577]
[1724411125725,1.2644757,61064.0,61063.0,0.0021577]
[1724411126077,1.2564757,61064.0,61063.0,0.0021577]
[1724411126277,0.9289507,61064.0,61063.0,0.0021577]
[1724411126490,0.9359507,61064.0,61063.0,0.0021577]
[1724411127163,0.9359507,61064.0,61063.0,0.0029817]
[1724411127362,0.9419507,61064.0,61063.0,0.0029817]
[1724411127776,0.9359507,61064.0,61063.0,0.0029817]
[1724411127974,0.9429507,61064.0,61063.0,0.0029817]
[1724411128379,0.9289507,61064.0,61063.0,0.0029817]
[1724411128627,0.19545064,61064.0,61063.0,0.0802817]
[1724411128739,0.52897564,61064.0,61063.0,0.0802817]
[1724411128946,0.85650064,61064.0,61063.0,0.0802817]
[1724411129145,0.85650064,61064.0,61063.0,0.12665789]
[1724411129350,0.9421507,61064.0,61063.0,0.0029817]
[1724411130398,0.6146257,61064.0,61063.0,0.0029817]
[1724411131336,0.6146257,61064.0,61063.0,0.04935789]
[1724411131541,0.6146257,61064.0,61063.0,0.0029817]
[1724411131745,0.9421507,61064.0,61063.0,0.02611528]
[1724411131952,0.9421507,61064.0,61063.0,0.0029817]
[1724411133938,1.2636757,61064.0,61063.0,0.0029817]
[1724411134163,0.9361507,61064.0,61063.0,0.0029817]
[1724411134648,0.9301507,61064.0,61063.0,0.0029817]
[1724411134844,0.9361507,61064.0,61063.0,0.0029817]
[1724411135051,0.9421507,61064.0,61063.0,0.0029817]
[1724411135251,0.9361507,61064.0,61063.0,0.0029817]
[1724411135603,0.9421507,61064.0,61063.0,0.0029817]
[1724411136231,0.9361507,61064.0,61063.0,0.0029817]
[1724411136637,0.03768864,61064.0,61063.0,0.0795817]
[1724411136838,0.03768864,61064.0,61063.0,0.3037467]
[1724411137060,0.03768864,61064.0,61063.0,0.32688028]
[1724411137200,0.03168864,61064.0,61063.0,0.65441028]
[1724411137557,0.02568864,61064.0,61063.0,0.32688028]
[1724411137758,0.03568864,61064.0,61063.0,0.32688028]
[1724411138369,0.03068864,61064.0,61063.0,0.65641028]
[1724411138519,0.03068864,61064.0,61063.0,0.32888028]
[1724411138724,0.03068864,61064.0,61063.0,0.32988028]
[1724411139127,0.03068864,61064.0,61063.0,0.65741028]
[1724411139558,0.03068864,61064.0,61063.0,1.14994326]
[1724411139750,0.03068864,61064.0,61063.0,1.49540177]
[1724411139983,0.03159504,61064.0,61063.0,1.59540177]
[1724411140148,0.03159504,61064.0,61063.0,1.59640177]
[1724411140350,0.163703,61086.0,61082.0,0.306913]
[1724411140551,0.4762064,61092.0,61085.0,0.163706]
[1724411140552,0.327381,61091.0,61085.0,0.163706]
[1724411140766,0.49229154,61090.0,61084.0,0.0817]
[1724411140990,0.02568038,61086.0,61085.0,0.163706]
[1724411141633,0.02568038,61086.0,61085.0,0.491118]
[1724411141834,0.02568038,61086.0,61085.0,0.58937363]
[1724411142770,0.02868038,61086.0,61085.0,0.58937363]
[1724411142966,0.02568038,61086.0,61085.0,0.58937363]
[1724411143175,0.02568038,61086.0,61085.0,0.59337363]
[1724411143848,0.02568038,61086.0,61085.0,0.26896163]
[1724411144267,0.18938338,61086.0,61085.0,0.10525563]
[1724411144426,0.51679038,61086.0,61085.0,0.10525563]
[1724411144640,0.1674,61105.0,61085.0,0.10525563]
[1724411144641,0.065595,61115.0,61086.0,0.1429]
[1724411144846,0.49229154,61124.0,61117.0,0.0814]
[1724411145242,0.49229154,61124.0,61117.0,0.245019]
[1724411145474,0.327199,61125.0,61118.0,0.01899173]
[1724411145677,0.0009053,61128.0,61118.0,0.01899173]
[1724411145873,0.163605,61123.0,61118.0,0.01899173]
[1724411146698,0.163607,61122.0,61118.0,0.01899173]
[1724411147700,0.16361,61121.0,61118.0,0.02099173]
[1724411147928,0.16361,61121.0,61118.0,0.01899173]
[1724411148147,0.16361,61121.0,61118.0,0.02099173]
[1724411148549,0.16361,61121.0,61118.0,0.01899173]
[1724411148900,0.16361,61121.0,61118.0,0.02199173]
[1724411149549,0.16361,61121.0,61118.0,0.02499173]
[1724411149752,0.16361,61121.0,61118.0,0.02199173]
[1724411150175,0.163606,61123.0,61118.0,0.02599173]
[1724411150585,0.163609,61122.0,61118.0,0.02599173]
[1724411150999,0.163609,61122.0,61118.0,0.02299173]
[1724411151377,0.163609,61122.0,61118.0,0.02399173]
[1724411151586,0.16361,61121.0,61118.0,0.02399173]
[1724411151787,0.16361,61121.0,61118.0,0.02299173]
[1724411151994,0.327198,61125.0,61118.0,0.02299173]
[1724411152195,0.0009064,61121.0,61118.0,0.02499173]
[1724411152347,0.0009064,61121.0,61118.0,0.02099173]
[1724411152780,0.0009064,61121.0,61118.0,0.02399173]
[1724411152956,0.0009064,61121.0,61118.0,0.02099173]
[1724411153845,0.0009064,61121.0,61118.0,0.02499173]
[1724411154249,0.1645164,61121.0,61118.0,0.02099173]
[1724411154451,0.1645164,61121.0,61118.0,0.01899173]
[1724411154658,0.163614,61120.0,61118.0,0.02299173]
[1724411155270,0.163614,61120.0,61118.0,0.01899173]
[1724411155497,0.163614,61120.0,61118.0,0.02299173]
[1724411155898,0.163614,61120.0,61118.0,0.02699173]
[1724411156037,0.163614,61120.0,61118.0,0.01899173]
[1724411156254,0.164614,61120.0,61118.0,0.02899173]
[1724411157004,0.001,61120.0,61118.0,0.02899173]
[1724411157227,0.163612,61120.0,61118.0,0.02399173]
[1724411157428,0.163615,61119.0,61118.0,0.02899173]
[1724411157881,0.001,61120.0,61118.0,0.02899173]
[1724411157882,0.001,61120.0,61118.0,0.02399173]
[1724411158117,0.001,61120.0,61118.0,0.02899173]
[1724411158330,0.164614,61120.0,61118.0,0.02899173]
[1724411158535,0.001,61120.0,61118.0,0.02399173]
[1724411158960,0.001,61119.0,61118.0,0.02999173]
[1724411159164,0.001,61119.0,61118.0,0.19360873]
[1724411159371,0.0009064,61121.0,61120.0,0.163612]
[1724411159576,0.0009064,61121.0,61120.0,0.79991149]
[1724411159788,0.0009064,61121.0,61120.0,1.47434882]
[1724411159994,0.0009064,61121.0,61120.0,1.47634882]
[1724411160197,0.0009064,61121.0,61120.0,1.14285231]
[1724411160404,0.0009064,61121.0,61120.0,0.81562731]
[1724411160615,0.1645154,61121.0,61120.0,0.16078733]
[1724411160822,0.4917344,61121.0,61120.0,0.16078733]
[1724411161027,0.8199534,61121.0,61120.0,0.10788733]
[1724411161230,0.8199534,61121.0,61120.0,0.09488733]
[1724411161231,0.0009064,61121.0,61120.0,0.09488733]
[1724411161437,0.1645154,61121.0,61120.0,0.0759]
[1724411161639,0.1645154,61121.0,61120.0,0.09488733]
[1724411161847,0.0009064,61121.0,61120.0,0.09888733]
[1724411162263,0.0009064,61121.0,61120.0,0.09488733]
[1724411162594,0.08737179,61121.0,61120.0,0.03198733]
[1724411162798,0.57819979,61121.0,61120.0,0.03198733]
[1724411162999,0.8949534,61121.0,61120.0,0.01898733]
[1724411163202,0.8949534,61121.0,61109.0,0.0644]
[1724411163203,0.163637,61111.0,61109.0,0.0644]
[1724411163401,0.163637,61111.0,61108.0,0.0764]
[1724411163402,0.163642,61109.0,61108.0,0.0764]
[1724411163642,0.490926,61109.0,61108.0,0.0764]
[1724411163994,0.490926,61109.0,61104.0,0.0601]
[1724411163995,0.163652,61105.0,61104.0,0.0601]
[1724411164121,0.32729,61108.0,61104.0,0.0601]
[1724411164325,0.0256678,61109.0,61104.0,0.0601]
[1724411164535,0.163651,61106.0,61104.0,0.0601]
[1724411164738,0.163652,61105.0,61104.0,0.0601]
[1724411164936,0.327295,61107.0,61104.0,0.0601]
[1724411164937,0.163649,61107.0,61104.0,0.0601]
[1724411165137,0.09568918,61109.0,61104.0,0.0601]
[1724411165339,0.163651,61106.0,61104.0,0.0601]
[1724411165638,0.327292,61108.0,61104.0,0.0601]
[1724411165877,0.327294,61107.0,61104.0,0.0601]
[1724411166080,0.163646,61108.0,61104.0,0.0601]
[1724411166271,0.16365,61106.0,61104.0,0.0601]